bitfinex-derivatives/quotes_ETHF0:USTF0_20251204
["timestamp","ask_amount","ask_price","bid_price","bid_amount"]
[1764866803015,3.394e-05,3181.4,3181.3,19.1202682]
[1764866803411,3.394e-05,3181.4,3181.3,30.4352682]
[1764866803716,3.394e-05,3181.4,3181.3,43.2302682]
[1764866805109,3.394e-05,3181.4,3181.3,19.1202682]
[1764866805310,3.394e-05,3181.4,3181.3,43.2282682]
[1764866805922,3.394e-05,3181.4,3181.3,19.1202682]
[1764866806113,3.394e-05,3181.4,3181.3,43.2272682]
[1764866807226,3.394e-05,3181.4,3181.3,19.1202682]
[1764866807423,3.394e-05,3181.4,3181.3,43.2272682]
[1764866807626,3.2078,3182.7,3182.6,9.3009]
[1764866807829,3.2078,3182.7,3182.6,22.0939]
[1764866808622,3.21034544,3182.7,3182.6,22.09677158]
[1764866809323,11.90784544,3182.7,3182.6,12.79587158]
[1764866809528,3.21034544,3182.7,3182.6,22.09677158]
[1764866809827,3.21034544,3182.7,3182.6,22.25384158]
[1764866810325,0.00254544,3182.7,3182.6,22.25384158]
[1764866810529,3.2078,3183.2,3183.1,9.45795]
[1764866810821,3.2078,3183.6,3183.5,9.3009]
[1764866811027,3.2078,3183.6,3183.5,22.0909]
[1764866811423,11.9053,3183.6,3183.5,17.428]
[1764866811724,4.32614333,3183.6,3183.5,22.0909]
[1764866811924,4.32614333,3183.6,3183.5,12.79]
[1764866811925,8.70084333,3183.6,3183.5,12.79]
[1764866812128,8.70084333,3183.6,3183.5,17.428]
[1764866812324,4.32614333,3183.6,3183.5,22.0899]
[1764866812528,8.70084333,3183.6,3183.5,17.427]
[1764866812725,0.00334333,3183.6,3183.5,22.0899]
[1764866813227,4.32614333,3183.6,3183.5,9.3009]
[1764866813530,4.32614333,3183.6,3183.5,22.0889]
[1764866814223,8.6975,3183.4,3183.3,7.8458]
[1764866814427,8.6975,3183.4,3183.2,0.15704]
[1764866814428,8.6975,3183.4,3182.7,3.2078]
[1764866814632,8.6975,3183.4,3183.3,6.812]
[1764866814824,8.6975,3183.4,3183.3,11.45]
[1764866815129,4.3228,3183.4,3183.3,22.0879]
[1764866815523,8.70084333,3183.6,3183.5,4.638]
[1764866815829,4.3228,3183.3,3183.2,9.45794]
[1764866816126,4.3228,3183.3,3183.2,22.24394]
[1764866816513,8.6975,3183.3,3183.2,12.786]
[1764866816719,8.6975,3183.3,3183.2,17.424]
[1764866816922,2.7961,3183.5,3183.4,9.3009]
[1764866816923,4.3228,3183.5,3183.4,9.3009]
[1764866817122,4.3228,3183.5,3183.0,9.45795]
[1764866817123,4.3228,3183.1,3183.0,9.45795]
[1764866817324,2.7961,3183.5,3183.0,9.45795]
[1764866817524,2.7961,3183.5,3183.0,19.40995]
[1764866818524,0.00334333,3183.6,3183.4,4.6629]
[1764866818719,4.32614333,3183.6,3183.5,9.3009]
[1764866819628,0.00334333,3183.6,3183.5,9.3009]
[1764866820033,0.00334333,3183.6,3183.5,12.03003]
[1764866820431,3.2078,3184.2,3184.1,9.3009]
[1764866820731,7.5306,3184.2,3184.1,22.2409]
[1764866820929,7.5306,3184.2,3184.1,22.2399]
[1764866821129,40.8,3184.9,3184.8,4.638]
[1764866821327,3.2078,3185.0,3184.9,9.3009]
[1764866821533,4.3228,3185.4,3185.3,4.638]
[1764866821729,11.4936,3185.0,3184.9,0.00358381]
[1764866821934,4.3228,3183.7,3183.6,4.638]
[1764866822935,4.32505115,3183.7,3183.6,4.64164661]
[1764866823128,0.00225115,3183.7,3183.6,11.87664661]
[1764866823334,0.00225115,3183.7,3183.6,12.03366661]
[1764866823633,0.00225115,3183.7,3183.6,24.81466661]
[1764866824224,3.03417978,3184.0,3183.9,9.02651]
[1764866824438,3.03417978,3184.0,3183.9,21.80651]
[1764866824734,3.03417978,3184.0,3183.9,9.02651]
[1764866824933,3.03417978,3184.0,3183.9,21.80651]
[1764866825332,3.03814319,3184.0,3183.9,8.8695]
[1764866825635,12.24154319,3184.0,3183.9,9.911]
[1764866826231,12.24154319,3184.0,3183.9,14.4455]
[1764866826232,7.57944319,3184.0,3183.9,14.4455]
[1764866826540,3.03814319,3184.0,3183.9,21.6485]
[1764866827435,7.57944319,3184.0,3183.9,21.6475]
[1764866827639,3.03814319,3184.0,3183.9,21.6475]
[1764866828039,3.03814319,3184.0,3183.9,8.8695]
[1764866828239,3.03814319,3184.0,3183.9,17.5735]
[1764866829145,3.03814319,3184.0,3183.9,17.73051]
[1764866829146,0.00867779,3184.0,3183.9,17.73051]
[1764866831147,3.21647779,3184.0,3183.9,21.80251]
[1764866831342,12.41987779,3184.0,3183.6,2.57574661]
[1764866831543,9.2034,3183.7,3183.6,0.00364661]
[1764866831742,9.2034,3183.7,3183.6,10.36764661]
[1764866831942,9.2034,3183.7,3183.6,14.90214661]
[1764866832644,9.2034,3183.7,3183.6,10.36764661]
[1764866833245,9.2034,3183.7,3183.6,0.00364661]
[1764866833446,9.2034,3183.7,3183.6,9.35414661]
[1764866833652,4.5413,3183.7,3183.6,13.68914661]
[1764866835848,9.2034,3183.7,3183.6,0.00364661]
[1764866836544,9.2034,3183.4,3183.3,0.00471438]
[1764866836745,3.2078,3183.8,3183.7,8.8695]
[1764866837141,7.7491,3183.8,3183.7,8.8695]
[1764866837351,7.7491,3183.8,3183.7,8.87297026]
[1764866837662,7.7491,3183.8,3183.7,19.23797026]
[1764866838053,3.2078,3183.8,3183.7,19.39499026]
[1764866839260,10.342,3185.0,3184.4,0.15698]
[1764866839451,0.807449,3184.9,3184.5,12.773]
[1764866840154,0.81025831,3184.9,3184.5,12.773]
[1764866840356,9.2034,3184.4,3184.3,3.2078]
[1764866840557,9.2034,3184.4,3184.3,9.756]
[1764866840757,9.2034,3184.4,3183.8,0.15701]
[1764866841157,7.7491,3184.2,3184.1,4.5345]
[1764866841753,3.2078,3184.2,3184.1,8.8695]
[1764866842150,7.7491,3184.2,3184.1,8.8695]
[1764866842358,3.2078,3184.2,3184.0,12.772]
[1764866842559,3.2078,3184.2,3184.0,17.3065]
[1764866842964,3.2078,3184.2,3184.1,8.8695]
[1764866845361,4.5413,3184.6,3184.5,4.5345]
[1764866845557,4.54410931,3184.9,3184.8,4.5345]
[1764866845859,10.01226794,3184.9,3184.8,4.5345]
[1764866846256,5.35016794,3184.9,3184.8,8.8695]
[1764866847168,0.80886794,3184.9,3184.8,8.8695]
[1764866847372,0.00280931,3184.9,3184.8,8.8695]
[1764866847563,0.00280931,3184.9,3184.8,9.02646]
[1764866848164,8.80290931,3184.9,3184.8,4.0739]
[1764866848365,0.80896769,3184.9,3184.8,8.1873]
[1764866848664,0.00280931,3184.9,3184.8,8.1873]
[1764866849569,44.0078,3185.5,3185.4,8.1873]
[1764866849768,44.8135806,3185.5,3185.4,8.1873]
[1764866850068,3.2078,3185.5,3185.4,8.1873]
[1764866850366,7.5587,3185.9,3185.8,4.0739]
[1764866850567,7.56245441,3185.9,3185.8,20.9543]
[1764866851267,7.56245441,3185.9,3185.8,12.92391]
[1764866851268,11.82125441,3185.9,3185.8,12.92391]
[1764866851468,11.82125441,3185.9,3185.8,0.15691]
[1764866851665,7.56245441,3185.9,3185.8,21.11021]
[1764866851865,3.21155441,3185.9,3185.8,21.11021]
[1764866852871,3.21071711,3185.9,3185.8,21.11021]
[1764866853067,0.00375441,3185.9,3185.8,21.11021]
[1764866853467,44.0078,3186.8,3186.7,4.0739]
[1764866853665,44.0078,3186.8,3186.7,16.6749]
[1764866854073,3.2078,3186.8,3186.7,16.6749]
[1764866854273,1.66543204,3188.5,3188.1,0.1568]
[1764866854575,8.3518,3188.3,3188.2,7.29373834]
[1764866854875,8.3518,3188.3,3188.2,6.0728]
[1764866855066,8.3518,3188.2,3188.1,0.00353498]
[1764866855262,8.3518,3188.2,3188.1,2.69253498]
[1764866855674,2.30997936,3188.5,3188.1,2.69253498]
[1764866855873,4.1644,3188.4,3188.3,3.2078]
[1764866856269,2.30997936,3188.5,3188.3,3.2078]
[1764866856665,0.00337936,3188.5,3188.3,3.2078]
[1764866856971,10.6584,3188.4,3188.3,3.2078]
[1764866857273,10.6584,3188.4,3188.3,11.7888]
[1764866857474,10.6584,3188.4,3188.3,3.2078]
[1764866857777,10.6584,3188.4,3188.3,5.4408]
[1764866858477,8.3518,3188.2,3188.1,0.00353498]
[1764866858780,8.3518,3187.4,3187.3,3.2078]
[1764866859069,4.1644,3187.4,3187.3,3.2078]
[1764866859274,2.3066,3187.8,3187.3,10.7038]
[1764866859675,2.3066,3187.8,3187.3,10.7067728]
[1764866860578,2.3066,3187.8,3187.3,3.2107728]
[1764866860776,2.3066,3187.8,3187.4,10.663]
[1764866861270,2.3066,3187.8,3187.4,12.279]
[1764866861663,8.3518,3187.4,3187.3,3.01945952]
[1764866861864,8.3518,3187.4,3187.2,0.00470684]
[1764866861865,2.3066,3186.6,3185.5,0.15693]
[1764866862067,2.3066,3186.6,3184.8,2.3828]
[1764866862068,3.2078,3185.9,3184.8,5.74756]
[1764866862269,2.63499226,3185.6,3184.8,3.36476]
[1764866862469,3.2078,3185.9,3184.8,3.36476]
[1764866862470,2.3066,3185.4,3184.8,3.36476]
[1764866862675,3.2078,3185.3,3184.8,3.36476]
[1764866862876,0.00247125,3185.3,3184.8,3.36882678]
[1764866863077,0.00247125,3185.3,3185.2,4.7656]
[1764866864583,3.2078,3186.0,3185.9,4.7608]
[1764866864879,3.2078,3186.0,3185.9,11.4778]
[1764866865283,3.2078,3186.5,3185.9,11.4778]
[1764866865580,3.21519059,3186.5,3185.9,11.4778]
[1764866866172,3.21519059,3186.5,3186.4,4.963]
[1764866866375,3.21519059,3186.5,3186.4,9.7264]
[1764866866680,2.873,3186.4,3185.7,3.2078]
[1764866866981,2.873,3186.4,3185.8,12.755]
[1764866867184,2.873,3186.4,3185.7,3.2078]
[1764866867374,43.673,3186.4,3185.7,3.2078]
[1764866867577,43.673,3186.4,3185.8,3.514]
[1764866867882,2.873,3186.4,3185.8,3.514]
[1764866868180,4.723,3186.0,3185.9,10.209]
[1764866868375,4.723,3186.0,3185.7,3.2078]
[1764866868585,2.873,3186.4,3185.9,12.755]
[1764866868785,2.873,3186.4,3185.7,3.2078]
[1764866869085,4.723,3186.0,3185.7,3.2078]
[1764866869284,4.723,3186.0,3185.8,4.479]
[1764866869479,4.723,3186.0,3185.7,3.2078]
[1764866869679,2.873,3186.4,3185.8,11.972]
[1764866869680,4.723,3185.9,3185.8,11.972]
[1764866869878,2.873,3186.4,3185.8,11.972]
[1764866872677,2.873,3186.4,3185.7,3.2078]
[1764866872678,4.723,3185.8,3185.7,3.2078]
[1764866872874,2.873,3186.0,3185.7,15.9618]
[1764866873688,2.873,3186.0,3185.7,3.2078]
[1764866873888,2.873,3186.0,3185.8,12.754]
[1764866874088,2.873,3186.0,3185.9,4.963]
[1764866874388,2.873,3186.4,3185.9,9.7264]
[1764866874786,3.21519059,3186.5,3186.4,4.963]
[1764866875184,4.723,3185.8,3185.6,11.861]
[1764866875385,0.00739059,3186.5,3185.7,4.963]
[1764866878089,0.00739059,3186.5,3185.8,0.15691]
[1764866878689,3.2078,3186.2,3185.9,10.571]
[1764866879590,7.596,3186.0,3185.9,10.571]
[1764866880587,2.873,3186.0,3185.9,4.963]
[1764866880794,2.873,3185.4,3185.0,3.2078]
[1764866880994,2.873,3185.4,3184.8,0.00406678]
[1764866881192,3.2078,3185.1,3184.8,0.00406678]
[1764866881388,4.723,3184.9,3184.8,0.00406678]
[1764866881595,9.5457,3184.9,3184.8,0.00406678]
[1764866881795,12.4187,3184.8,3184.7,0.00470684]
[1764866882803,12.4187,3184.8,3184.7,0.00754145]
[1764866884908,9.6325,3184.5,3184.4,12.753]
[1764866885404,12.5188,3184.2,3184.1,3.2078]
[1764866885902,0.00470684,3184.5,3184.4,8.163]
[1764866886101,9.63720684,3184.5,3184.4,12.753]
[1764866886398,9.63720684,3184.5,3184.4,16.8345]
[1764866886399,0.00470684,3184.5,3184.4,16.8345]
[1764866886705,0.00470684,3184.5,3184.4,20.916]
[1764866887104,0.00732849,3184.5,3184.4,20.916]
[1764866888506,0.00732849,3184.5,3184.4,21.07298]
[1764866889805,0.00732849,3184.5,3184.4,23.43924097]
[1764866890008,3.2078,3185.1,3185.0,8.163]
[1764866891012,3.2078,3185.1,3185.0,21.07295]
[1764866891013,0.00304166,3185.1,3185.0,21.07295]
[1764866892808,0.9784,3183.0,3182.3,3.2078]
[1764866893005,0.9784,3183.0,3180.9,0.15715]
[1764866893006,2.36626097,3182.4,3182.2,2.24762227]
[1764866893206,40.8,3182.3,3181.2,2.78724]
[1764866893508,0.94481972,3182.2,3181.2,5.38333698]
[1764866893704,3.2078,3181.8,3181.2,2.78067201]
[1764866893903,0.94481972,3181.7,3181.4,0.00471431]
[1764866894100,3.2078,3181.5,3181.4,0.00471431]
[1764866894407,4.18387456,3181.5,3181.4,0.00471431]
[1764866894609,4.18387456,3181.5,3181.4,2.60081129]
[1764866895413,4.18387456,3181.5,3181.4,12.27981129]
[1764866895906,3.2078,3181.5,3181.4,12.27981129]
[1764866896105,0.00471431,3182.0,3181.5,2.6301]
[1764866896315,0.00471431,3182.0,3181.6,12.755]
[1764866896499,0.00471431,3182.0,3181.6,0.15712]
[1764866896500,3.2078,3181.9,3181.6,0.15712]
[1764866896704,0.97336517,3181.8,3181.7,6.051]
[1764866896900,0.97336517,3181.8,3181.7,12.756]
[1764866897509,3.2078,3181.9,3181.7,12.756]
[1764866898511,0.00471431,3182.0,3181.7,12.756]
[1764866898708,0.00471431,3182.0,3181.7,15.12226097]
[1764866898910,1.431e-05,3182.0,3181.9,9.8748]
[1764866899320,3.33302088,3182.0,3181.5,2.6301]
[1764866899613,3.33302088,3182.0,3181.4,0.00471431]
[1764866899614,3.2078,3181.6,3181.4,0.00471431]
[1764866899919,0.9667456,3181.5,3181.4,0.00471431]
[1764866900304,0.9667456,3181.5,3181.4,7.72141129]
[1764866900508,1.431e-05,3182.0,3181.5,2.6301]
[1764866900709,1.431e-05,3182.0,3181.8,3.2078]
[1764866901010,1.431e-05,3182.0,3181.6,3.2078]
[1764866901414,1.431e-05,3182.0,3181.6,9.67215737]
[1764866901613,1.431e-05,3182.0,3181.6,6.46435737]
[1764866901820,1.431e-05,3182.0,3181.6,9.67215737]
[1764866902204,1.431e-05,3182.0,3181.9,0.15711]
[1764866902717,0.96616934,3182.0,3181.5,15.3901]
[1764866902917,4.17395503,3181.9,3181.5,15.3901]
[1764866903213,0.96616802,3181.8,3181.5,15.3901]
[1764866903515,3.2078,3181.9,3181.5,15.3901]
[1764866903715,0.96667788,3181.8,3181.5,15.3901]
[1764866903912,3.2078,3181.9,3181.5,15.3901]
[1764866904113,0.96672765,3181.8,3181.7,5.1206]
[1764866905611,0.96672765,3181.8,3181.7,9.8748]
[1764866905817,1.431e-05,3182.0,3181.7,10.03192]
[1764866906022,0.96763643,3181.9,3181.8,9.8748]
[1764866906417,0.96763643,3181.9,3181.8,10.03191]
[1764866906611,1.431e-05,3182.0,3181.9,0.15711]
[1764866907111,16.58658582,3182.0,3181.5,2.6301]
[1764866907312,16.58658582,3182.0,3181.4,0.00471431]
[1764866907313,3.2078,3181.6,3181.4,0.00471431]
[1764866907613,0.95407151,3181.5,3181.4,0.00471431]
[1764866907820,0.95407151,3181.5,3181.4,2.60081129]
[1764866908615,0.95407151,3181.5,3181.4,13.71481129]
[1764866908814,0.95407151,3181.5,3181.4,15.36281129]
[1764866909921,10.58657151,3181.5,3181.4,15.36281129]
[1764866910322,10.97628533,3181.5,3181.4,2.60081129]
[1764866910522,10.97628533,3181.5,3181.2,0.00268944]
[1764866910523,6.06198533,3181.5,3181.2,0.00268944]
[1764866910726,10.58657151,3181.4,3181.3,3.713]
[1764866910915,10.97631956,3181.4,3181.3,3.713]
[1764866911418,4.9143,3181.3,3181.2,9.79068944]
[1764866911611,5.86837151,3181.3,3181.2,9.79068944]
[1764866911921,6.25813035,3181.3,3181.2,9.79068944]
[1764866912126,10.97633035,3181.3,3181.2,9.79068944]
[1764866912319,10.97633035,3181.3,3181.2,12.763]
[1764866912520,10.58657151,3181.3,3181.2,12.763]
[1764866912715,5.86837151,3181.3,3181.2,12.763]
[1764866913020,0.95407151,3181.3,3181.2,15.3931]
[1764866913222,0.95407151,3181.3,3181.2,15.39620825]
[1764866915224,0.95407151,3181.3,3181.2,20.02580825]
[1764866916432,0.95407151,3181.3,3181.2,24.43610825]
[1764866917730,5.74867151,3181.3,3181.2,20.02580825]
[1764866918034,5.74867151,3181.3,3181.2,12.76610825]
[1764866918629,10.53487151,3181.3,3181.2,0.00310825]
[1764866918932,10.53487151,3181.3,3181.2,12.76810825]
[1764866919335,10.91300385,3181.3,3181.2,11.0710612]
[1764866919536,10.91300385,3181.3,3181.2,8.91318031]
[1764866919832,12.57711013,3181.3,3181.2,8.91318031]
[1764866920234,10.91300385,3181.3,3181.2,8.91552862]
[1764866921231,10.91300385,3181.3,3181.2,0.00234831]
[1764866921434,6.12680385,3181.3,3181.2,4.63194831]
[1764866922535,1.33220385,3181.3,3181.2,9.04224831]
[1764866922831,3.57056629,3181.3,3181.2,9.04224831]
[1764866923627,6.12680385,3181.3,3181.2,14.88894831]
[1764866924132,1.33220385,3181.3,3181.2,14.88894831]
[1764866924330,1.33220385,3181.3,3181.2,19.29924831]
[1764866925724,1.33220385,3181.3,3181.2,19.45638831]
[1764866927332,1.33220385,3181.3,3181.2,21.96338831]
[1764866927833,1.30804479,3181.3,3181.2,21.96338831]
[1764866928032,0.95407151,3181.3,3181.2,21.96338831]
[1764866928238,1.30803745,3181.3,3181.2,21.96338831]
[1764866928742,0.95407151,3181.3,3181.2,21.96338831]
[1764866929331,1.67805743,3181.4,3181.3,11.41964]
[1764866929734,1.67805743,3181.5,3181.4,11.2625]
[1764866930841,4.88585743,3181.6,3181.5,14.6271]
[1764866931339,3.2078,3181.6,3181.5,14.78423]
[1764866931541,1.67805743,3181.8,3181.7,11.2625]
[1764866932735,1.67805743,3181.9,3181.8,11.2625]
[1764866933338,3.20781431,3182.0,3181.9,11.2625]
[1764866933549,3.20781431,3182.0,3181.9,24.0245]
[1764866934133,3.20781431,3182.0,3181.9,24.18161]
[1764866935242,1.431e-05,3182.0,3181.9,12.91911]
[1764866938145,3.0676105,3182.4,3182.3,11.41959]
[1764866938339,2.36626097,3183.8,3182.3,11.41959]
[1764866938340,3.2078,3183.0,3182.9,11.2625]
[1764866938538,3.2078,3183.0,3182.9,24.0225]
[1764866939250,3.21155804,3183.0,3182.9,24.0225]
[1764866939437,13.89085804,3183.0,3182.6,0.00471431]
[1764866939641,13.89085804,3183.0,3181.1,3.2078]
[1764866939642,0.9541,3182.0,3181.1,3.2078]
[1764866939936,10.6793,3181.6,3181.5,4.611]
[1764866940242,5.3225,3181.6,3181.5,19.2381]
[1764866940954,5.3225,3181.6,3181.5,21.6728]
[1764866941135,10.6793,3181.6,3181.5,12.758]
[1764866941338,3.2078,3181.9,3181.5,27.3851]
[1764866941538,13.8871,3181.9,3181.8,5.5502]
[1764866941739,9.32652338,3181.9,3181.8,5.5502]
[1764866942545,4.00404803,3181.9,3181.8,11.2625]
[1764866942849,13.8871,3182.3,3181.5,19.48752]
[1764866943152,3.2078,3182.3,3181.6,12.758]
[1764866943349,3.2078,3182.3,3181.5,6.72952]
[1764866943554,3.2078,3182.3,3181.6,12.758]
[1764866944248,3.2078,3182.7,3182.2,11.0252]
[1764866944449,0.79642172,3182.6,3182.2,11.0252]
[1764866945653,5.4432,3182.6,3182.5,5.6919]
[1764866945847,3.2078,3182.7,3182.6,5.6919]
[1764866946050,9.39784246,3182.7,3182.6,12.046]
[1764866946242,14.84104246,3182.7,3182.6,12.046]
[1764866946447,14.0446,3182.7,3182.6,12.046]
[1764866946648,14.84085832,3182.7,3182.6,12.046]
[1764866947154,14.0446,3182.7,3182.6,12.757]
[1764866948448,5.4432,3182.4,3182.3,5.84898]
[1764866948653,5.4432,3182.4,3182.3,18.60498]
[1764866949040,3.2078,3182.7,3182.3,24.07998]
[1764866949446,8.651,3182.7,3182.6,5.6919]
[1764866949944,8.651,3182.7,3182.6,11.1669]
[1764866950145,3.2078,3182.7,3182.6,11.1669]
[1764866950545,3.2078,3182.7,3182.6,11.32397]
[1764866952457,0.00375804,3183.0,3182.9,11.1669]
[1764866952959,0.00375804,3183.0,3182.9,21.9369]
[1764866954955,5.3936,3181.6,3181.2,0.00706262]
[1764866955150,3.2078,3181.5,3181.3,12.24]
[1764866955352,10.8368,3181.4,3181.3,12.24]
[1764866956459,10.8368,3181.4,3181.3,12.752]
[1764866956662,5.4432,3181.3,3181.2,5.69896262]
[1764866956861,5.4432,3181.3,3181.2,18.45096262]
[1764866957062,10.8368,3181.3,3181.2,12.75906262]
[1764866957361,3.2078,3181.5,3181.2,12.75906262]
[1764866957362,3.2078,3181.5,3181.4,11.1669]
[1764866959052,8.651,3181.5,3181.4,23.9199]
[1764866959254,10.8368,3181.3,3181.2,0.00706262]
[1764866959556,10.8368,3181.3,3180.6,3.2078]
[1764866959557,10.8368,3181.1,3181.0,12.752]
[1764866959753,10.8368,3181.1,3180.6,3.2078]
[1764866959754,10.8368,3180.3,3180.2,3.2078]
[1764866959952,3.2078,3181.1,3180.5,14.2785]
[1764866960462,44.01101349,3181.1,3180.5,14.2865506]
[1764866963559,3.2078,3180.6,3180.5,14.2865506]
[1764866963764,14.0446,3180.6,3180.0,3.1116]
[1764866963962,3.2078,3180.6,3180.5,11.1669]
[1764866964662,3.2078,3180.6,3180.5,14.2785]
[1764866964964,3.2078,3180.6,3180.5,14.2807847]
[1764866965365,8.651,3180.6,3180.5,8.8057847]
[1764866965763,8.651,3180.6,3180.5,18.0987847]
[1764866966163,14.0446,3180.6,3180.5,0.0022847]
[1764866966368,3.2078,3180.6,3180.5,4.77]
[1764866966565,10.8368,3180.3,3180.2,0.00471431]
[1764866966863,10.8368,3180.3,3180.2,11.92571431]
[1764866967365,10.8368,3180.3,3180.2,11.92902532]
[1764866967958,10.8368,3180.3,3180.2,0.00802532]
[1764866968158,10.8368,3180.3,3180.2,5.02202532]
[1764866969356,10.8368,3180.3,3180.2,12.76002532]
[1764866969553,10.8368,3180.3,3180.2,0.00802532]
[1764866969767,10.8368,3180.3,3180.2,12.76002532]
[1764866970159,5.4432,3180.3,3180.2,18.45192532]
[1764866970766,10.8368,3180.3,3180.2,18.45192532]
[1764866970967,10.8368,3180.3,3180.2,12.76002532]
[1764866972870,10.8368,3180.3,3180.2,0.00802532]
[1764866973170,10.8368,3180.3,3180.2,12.76102532]
[1764866973673,3.2078,3180.6,3180.5,14.2785]
[1764866974168,3.2078,3180.6,3180.5,14.43567]
[1764866974967,3.2078,3181.0,3180.5,14.43567]
[1764866975172,5.44641349,3181.1,3181.0,8.6041]
[1764866975370,0.00321349,3181.1,3181.0,13.798]
[1764866976858,0.00321349,3181.1,3181.0,13.95515]
[1764866977064,3.2078,3181.4,3181.3,10.4987]
[1764866977265,3.2078,3181.4,3181.3,23.2497]
[1764866977568,8.5425,3181.4,3181.3,23.2497]
[1764866977768,3.2078,3181.4,3181.3,23.2497]
[1764866978073,3.21143421,3181.4,3181.3,23.2497]
[1764866978572,3.21143421,3181.4,3181.3,23.2487]
[1764866978774,3.21143421,3181.4,3181.3,10.4987]
[1764866979072,40.8,3182.3,3181.3,11.293]
[1764866979371,10.4935,3181.7,3181.6,5.3048]
[1764866979968,10.4935,3181.7,3181.6,18.0538]
[1764866980175,10.49746287,3181.7,3181.6,18.0538]
[1764866982273,5.33866287,3181.7,3181.6,23.2477]
[1764866983364,5.33866287,3181.7,3181.6,23.2457]
[1764866984781,4.9012,3181.2,3181.1,10.10414]
[1764866984972,9.6618,3181.2,3181.1,17.2788]
[1764866985176,0.00396287,3181.7,3181.0,4.8268]
[1764866985177,9.6618,3181.1,3181.0,4.8268]
[1764866985477,9.6618,3181.1,3180.9,3.2078]
[1764866985478,9.6618,3181.0,3180.9,8.0346]
[1764866985774,4.9012,3181.0,3180.9,25.9008]
[1764866985978,9.6618,3181.0,3180.9,20.7806]
[1764866986377,9.6618,3181.0,3180.9,8.0346]
[1764866986675,9.6618,3181.0,3180.9,3.2078]
[1764866986875,4.9012,3180.6,3180.5,13.0586]
[1764866987069,9.6618,3180.6,3180.5,13.0586]
[1764866987275,4.9012,3180.3,3180.2,9.95502532]
[1764866987484,4.9012,3180.3,3180.2,22.70002532]
[1764866987878,4.9012,3180.3,3180.2,9.95502532]
[1764866988080,4.9012,3180.3,3180.2,22.70002532]
[1764866989676,9.6618,3180.3,3180.2,0.00802532]
[1764866989878,9.6618,3180.3,3180.2,12.75302532]
[1764866990878,9.6618,3180.3,3179.5,2.8103]
[1764866990879,1.12345307,3180.3,3179.5,2.8103]
[1764866991180,3.2078,3179.6,3179.5,12.7573]
[1764866991779,3.2078,3179.6,3179.5,12.76073928]
[1764866992482,3.2078,3179.2,3176.5,7.11325239]
[1764866992671,3.2078,3179.2,3172.4,16.52124449]
[1764866992672,3.2078,3176.3,3174.4,2.49310136]
[1764866992867,1.67663766,3174.9,3171.9,5.63087549]
[1764866993072,12.759458,3176.2,3172.0,2.4953]
[1764866993073,40.8,3172.3,3172.0,2.4953]
[1764866993273,0.327068,3172.2,3172.0,2.4953]
[1764866993474,1.46154133,3172.1,3172.0,44.40908413]
[1764866993676,1.46154133,3172.1,3172.0,85.53311746]
[1764866994082,2.6374244,3173.8,3172.1,29.58633308]
[1764866994381,3.2078,3172.2,3172.1,29.58633308]
[1764866994574,3.2078,3172.2,3172.1,18.52496871]
[1764866994777,3.2078,3172.2,3172.1,66.98756387]
[1764866995077,3.21049578,3172.2,3172.1,13.2196996]
[1764866995377,3.2078,3171.8,3170.7,13.213]
[1764866995682,5.8452244,3170.8,3170.3,15.31716871]
[1764866995879,3.2078,3170.4,3170.3,15.31716871]
[1764866996176,3.2078,3170.4,3170.3,38.45339516]
[1764866996369,3.2078,3170.4,3170.3,55.70429462]
[1764866997171,3.2078,3170.4,3170.3,0.05712591]
[1764866997378,3.2078,3170.4,3170.3,17.30429462]
[1764866997885,44.0078,3170.4,3170.3,13.27612591]
[1764866998083,44.0078,3170.4,3170.3,28.59329462]
[1764866998280,44.0078,3170.4,3170.3,15.37429462]
[1764866998486,44.0078,3170.4,3170.3,17.30429462]
[1764866999276,51.10913639,3170.4,3170.3,17.30429462]
[1764866999475,53.74656079,3170.4,3170.1,15.147]
[1764866999685,5.37583793,3170.2,3170.1,13.217]
[1764867000178,53.74656079,3170.4,3169.8,2.8103]
[1764867000179,3.76173877,3170.3,3169.8,2.8103]
[1764867000371,3.29895306,3170.3,3169.8,2.8103]
[1764867000684,3.2078,3170.5,3169.9,3.13655876]
[1764867000984,4.879e-05,3170.0,3169.8,2.8139903]
[1764867001178,3.2078,3170.5,3169.8,2.8139903]
[1764867001384,3.2078,3170.5,3169.9,4.612]
[1764867001682,3.2078,3170.5,3170.4,2.8103]
[1764867001977,3.2078,3170.5,3170.4,16.0253]
[1764867002481,3.2078,3170.5,3170.4,22.0253]
[1764867002683,3.2078,3170.5,3169.8,0.0036903]
[1764867002885,3.2078,3169.9,3169.8,0.0036903]
[1764867003077,3.21000735,3169.9,3169.8,0.0036903]
[1764867003383,44.01000735,3169.9,3169.8,7.9026903]
[1764867003885,44.01000735,3169.9,3169.8,11.6816903]
[1764867004075,3.21000735,3169.9,3169.8,11.6816903]
[1764867004477,3.21000735,3169.9,3169.8,0.0036903]
[1764867004677,3.21000735,3169.9,3169.8,5.7106903]
[1764867004875,3.21000735,3169.9,3169.8,13.2116903]
[1764867005477,3.21000735,3169.9,3169.8,0.0036903]
[1764867005682,3.21000735,3169.9,3169.8,5.7526903]
[1764867006182,4.34542043,3169.9,3169.8,5.7526903]
[1764867006984,4.34542043,3169.9,3169.8,13.2056903]
[1764867007181,3.2078,3170.5,3169.8,19.2056903]
[1764867007379,3.2078,3170.5,3169.8,13.2056903]
[1764867008184,3.21135446,3170.5,3170.4,4.6369]
[1764867008687,0.00355446,3170.5,3170.4,4.6369]
[1764867008885,0.00472992,3170.7,3170.4,10.6369]
[1764867009087,0.00472992,3170.7,3170.4,4.6369]
[1764867009588,1.59965518,3171.5,3170.5,13.186]
[1764867009778,3.2078,3171.4,3170.6,27.7398]
[1764867009977,3.21129812,3171.4,3170.6,27.7398]
[1764867010280,4.8109533,3171.4,3170.6,27.7398]
[1764867010587,0.00472992,3171.3,3170.7,0.00472992]
[1764867010974,2.3868294,3171.2,3170.7,0.00472992]